fUST/lending_fUST_20251219
["ID","MTS","AMOUNT","RATE_DAILY","PERIOD"]
[399199634,1766158232503,-500.0,0.00018451,2]
[399199635,1766158232512,-500.0,0.00018451,2]
[399199637,1766158232521,-500.0,0.00018451,2]
[399199639,1766158232530,-500.0,0.00018451,2]
[399199641,1766158232541,-1112.0,0.00018451,2]
[399199643,1766158232552,-201.25491235,0.00018451,2]
[399199645,1766158232562,-362.84,0.00018461,2]
[399199648,1766158232572,-23126.7360254,0.00018462,2]
[399199649,1766158232582,-1112.0,0.00018506,2]
[399199651,1766158232591,-186.699,0.00018506,2]
[399199653,1766158232600,-1112.0,0.00018561,2]
[399199655,1766158232611,-1112.0,0.00018616,2]
[399199657,1766158232620,-629.02815423,0.0001878,2]
[399199659,1766158232631,-16275.08464158,0.00019,2]
[399199662,1766158232642,-500.0,0.00019384,2]
[399199664,1766158232651,-201.49499767,0.00019384,2]
[399199666,1766158232660,-500.0,0.00019384,2]
[399199667,1766158232670,-500.0,0.00019384,2]
[399199669,1766158232681,-151.19909229,0.00019384,2]
[399199671,1766158232691,-500.0,0.00019384,2]
[399199672,1766158232700,-151.0,0.00019384,2]
[399199673,1766158232710,-152.9083085,0.00019384,2]
[399199675,1766158232720,-153.38236539,0.00019384,2]
[399199677,1766158232729,-150.0,0.00019384,2]
[399199679,1766158232738,-293.15151234,0.00019384,2]
[399199681,1766158232747,-150.0,0.00019384,2]
[399199683,1766158232757,-500.0,0.00019384,2]
[399199685,1766158232766,-203.10234941,0.00019384,2]
[399199687,1766158232776,-157.90647009,0.00019384,2]
[399199689,1766158232785,-150.0,0.00019384,2]
[399199691,1766158232794,-500.0,0.00019384,2]
[399199693,1766158232803,-150.0,0.00019384,2]
[399199695,1766158232813,-201.94711698,0.00019384,2]
[399199697,1766158232822,-177.0,0.00019504,2]
[399199699,1766158232832,-500.0,0.00019521,2]
[399199701,1766158232842,-500.0,0.00019521,2]
[399199703,1766158232853,-500.0,0.00019521,2]
[399199704,1766158232863,-500.0,0.00019521,2]
[399199706,1766158232873,-150.0,0.00019521,2]
[399199708,1766158232882,-266.78701561,0.00019521,2]
[399199710,1766158232891,-501.21919179,0.00019521,2]
[399199712,1766158232901,-150.62462407,0.00019521,2]
[399199713,1766158232911,-500.0,0.00019521,2]
[399199714,1766158232920,-150.0,0.00019521,2]
[399199715,1766158232934,-500.0,0.00019658,2]
[399199716,1766158232943,-500.0,0.00019658,2]
[399199717,1766158232953,-500.0,0.00019658,2]
[399199718,1766158232962,-500.0,0.00019658,2]
[399199719,1766158232971,-150.0,0.00019658,2]
[399199720,1766158232980,-150.0,0.00019658,2]
[399199721,1766158232990,-500.0,0.00019658,2]
[399199722,1766158233003,-7941.10641689,0.00019671,2]
[399199723,1766158233013,-344.50792168,0.00019795,2]
[399199724,1766158233022,-500.0,0.00019795,2]
[399199725,1766158233031,-365.68509307,0.00019795,2]
[399199726,1766158233041,-500.0,0.00019795,2]
[399199727,1766158233051,-257.32998072,0.00019795,2]
[399199728,1766158233060,-203.62348152,0.00019795,2]
[399199729,1766158233070,-536.20875619,0.00019795,2]
[399199730,1766158233079,-1665.55724357,0.00019928,2]
[399199731,1766158233089,-500.0,0.00019932,2]
[399199732,1766158233099,-366.59029801,0.00019932,2]
[399199733,1766158233109,-1026.45012893,0.0002,5]
[399199734,1766158233118,-1760.84689319,0.0002,2]
[399199735,1766158233128,-547.05471109,0.0002,2]
[399199736,1766158233137,-500.0,0.00020069,2]
[399199737,1766158233147,-820.30305718,0.00020133,7]
[399199738,1766158233156,-272.518057,0.00020187,2]
[399199739,1766158233166,-500.0,0.00020206,2]
[399199740,1766158233178,-587.719007,0.00020343,2]
[399199741,1766158233188,-300.0,0.00020511,2]
[399199742,1766158233198,-300.0,0.00020511,2]
[399199743,1766158233207,-300.0,0.00020511,2]
[399199744,1766158233218,-300.0,0.00020511,2]
[399199745,1766158233227,-300.0,0.00020511,2]
[399199746,1766158233237,-300.0,0.00020511,2]
[399199747,1766158233247,-300.0,0.00020511,2]
[399199748,1766158233256,-300.0,0.00020511,2]
[399199749,1766158233266,-300.0,0.00020511,2]
[399199750,1766158233275,-300.0,0.00020511,2]
[399199751,1766158233284,-300.0,0.00020511,2]
[399199752,1766158233294,-300.0,0.00020511,2]
[399199753,1766158233303,-300.0,0.00020511,2]
[399199754,1766158233313,-300.0,0.00020511,2]
[399199755,1766158233323,-300.0,0.00020511,2]
[399199756,1766158233332,-543.91553014,0.00020697,2]
[399199757,1766158233342,-250.0,0.0002078,2]
[399199758,1766158233351,-160.0,0.00020918,2]
[399199759,1766158233360,-155.0,0.00021,3]
[399199760,1766158233369,-900.0,0.00021,2]
[399199761,1766158233379,-352.41668253,0.00021069,10]
[399199762,1766158233388,-777.0776596,0.00021214,2]
[399199763,1766158233398,-543.91553014,0.00021272,2]
[399199764,1766158233408,-260.0,0.00021466,2]
[399199765,1766158233418,-19168.57583742,0.000215,7]
[399199766,1766158233429,-204.0,0.00021504,2]
[399199767,1766158233438,-415.0,0.00021588,2]
[399199768,1766158233448,-173.3894626,0.00021755,2]
[399199769,1766158233457,-543.91553014,0.00021848,2]
[399199770,1766158233466,-1002.0,0.00022,3]
[399199771,1766158233475,-360.0,0.00022014,2]
[399199772,1766158233574,-543.91553014,0.00022424,2]
[399199773,1766158233585,-460.0,0.00022562,2]
[399199774,1766158233595,-250.0,0.0002298,2]
[399199775,1766158233605,-600.0,0.00022994,10]
[399199776,1766158233614,-544.45944567,0.00023,2]
[399199777,1766158233624,-560.0,0.0002311,2]
[399199778,1766158233634,-352.41668253,0.00023153,14]
[399199779,1766158233643,-231.0,0.00023504,2]
[399199780,1766158233653,-660.0,0.00023658,2]
[399199781,1766158233662,-155.0,0.00024,4]
[399199782,1766158233673,-218.485,0.00024063,2]
[399199783,1766158233682,-237.925,0.00024063,2]
[399199784,1766158233692,-250.0,0.00024063,2]
[399199785,1766158233702,-266.515,0.00024063,2]
[399199786,1766158233711,-1361.82337568,0.000241,2]
[399199787,1766158233720,-84364.42575474,0.00024142,2]
[399199788,1766158233730,-147587.11,0.000242,2]
[399199789,1766158233739,-2350.34,0.000242,2]
[399199790,1766158233749,-372.54,0.000242,14]
[399199791,1766158233758,-760.0,0.00024206,2]
[399199792,1766158233768,-415.0,0.00024588,2]
[399199793,1766158233777,-83471.28068245,0.0002465,2]
[399199794,1766158233786,-151.75927968,0.00024658,2]
[399199795,1766158233796,-380.0,0.00024658,2]
[399199796,1766158233806,-500.0,0.00024658,2]
[399199797,1766158233816,-860.0,0.00024754,2]
[399199798,1766158233827,-16803.00056433,0.00024774,2]
[399199799,1766158233836,-500.0,0.00024795,2]
[399199800,1766158233846,-26326.0053259,0.000248,2]
[399199801,1766158233856,-34081.5639131,0.000249,2]
[399199802,1766158233866,-500.0,0.00024932,2]
[399199803,1766158233875,-3098.3239921,0.0002498,2]
[399199804,1766158233884,-2393.27321145,0.0002498,2]
[399199805,1766158233894,-6196.6479842,0.0002499,2]
[399199806,1766158233903,-4786.5464229,0.0002499,2]
[399199807,1766158233913,-10388.43105614,0.00025,2]
[399199808,1766158233925,-1231.9993104,0.00025,2]
[399199809,1766158233990,-512.35140376,0.00025,2]
[399199810,1766158234002,-8619.64928584,0.00025,2]
[399199811,1766158234013,-160.34,0.00025,2]
[399199812,1766158234023,-81102.76813599,0.00025,2]
[399199813,1766158234034,-790.97,0.00025,2]
[399199836,1766158238382,-299.3888665,0.00024,7]
[399199838,1766158238394,-742.27780017,0.00024,7]
[399199841,1766158238404,-1357.76719531,0.00025,2]
[399199843,1766158238421,-141.71069176,0.00025,2]
[399199845,1766158238433,-682.0,0.00025,2]
[399199847,1766158238443,-500.0,0.00025069,2]
[399199849,1766158238453,-500.0,0.00025206,2]
[399199851,1766158238462,-352.41668253,0.00025237,18]
[399199853,1766158238472,-458.07254419,0.00025294,10]
[399200065,1766158240702,-261.92745581,0.00025294,10]
[399200067,1766158240712,-960.0,0.00025302,2]
[399200069,1766158240722,-500.0,0.00025343,2]
[399200071,1766158240731,-1361.82337564,0.00025401,2]
[399200073,1766158240741,-500.0,0.0002548,2]
[399200075,1766158240750,-258.0,0.00025504,2]
[399200077,1766158240759,-500.0,0.00025617,2]
[399200079,1766158240768,-820.30305718,0.000257,2]
[399200081,1766158240777,-500.0,0.00025754,2]
[399200083,1766158240786,-1060.0,0.0002585,2]
[399200085,1766158240795,-500.0,0.00025891,2]
[399200087,1766158240805,-1091.625566,0.00025975,2]
[399200089,1766158240814,-3098.3239921,0.0002598,2]
[399200091,1766158240823,-2393.27321145,0.0002598,2]
[399200093,1766158240832,-19900.0,0.00026,2]
[399200095,1766158240841,-500.0,0.00026028,2]
[399200097,1766158240850,-194.31805286,0.0002616,2]
[399200099,1766158240859,-500.0,0.00026165,2]
[399200101,1766158240868,-500.0,0.00026302,2]
[399200103,1766158240877,-1160.0,0.00026398,2]
[399200105,1766158240886,-500.0,0.00026439,2]
[399200107,1766158240896,-500.0,0.00026576,2]
[399200109,1766158240905,-272.518057,0.00026676,2]
[399200111,1766158240914,-1361.82337564,0.00026703,2]
[399200113,1766158240923,-500.0,0.00026713,2]
[399200115,1766158240934,-500.0,0.0002685,2]
[399200117,1766158240943,-1260.0,0.00026946,2]
[399200119,1766158240952,-500.0,0.00026987,2]
[399200121,1766158240961,-5762.018141,0.00027,30]
[399200123,1766158240970,-150.0,0.00027063,2]
[399200125,1766158240979,-150.0,0.00027063,2]
[399200127,1766158240988,-150.0,0.00027063,2]
[399200129,1766158240997,-151.0,0.000271,14]
[399200131,1766158241006,-500.0,0.00027124,2]
[399200133,1766158241014,-424.59619308,0.00027261,2]
[399200135,1766158241024,-352.41668253,0.00027321,22]
[399200137,1766158241033,-3098.3239921,0.0002739,2]
[399200139,1766158241042,-2393.27321145,0.0002739,2]
[399200141,1766158241051,-400.0,0.00027397,3]
[399200143,1766158241060,-400.0,0.00027397,3]
[399200145,1766158241069,-400.0,0.00027397,6]
[399200146,1766158241079,-400.0,0.00027397,4]
[399200148,1766158241089,-400.0,0.00027397,6]
[399200150,1766158241098,-400.0,0.00027397,5]
[399200152,1766158241107,-400.0,0.00027397,6]
[399200154,1766158241116,-626.3154312,0.00027397,3]
[399200156,1766158241125,-370.0,0.00027397,3]
[399200158,1766158241135,-449.2,0.00027397,4]
[399200160,1766158241144,-369.2,0.00027397,3]
[399200162,1766158241153,-445.2,0.00027397,5]
[399200164,1766158241163,-361.8,0.00027397,3]
[399200167,1766158241172,-456.0,0.00027397,6]
[399200169,1766158241183,-150.0,0.00027397,2]
[399200170,1766158241192,-2350.34,0.000274,2]
[399200172,1766158241201,-1360.0,0.00027494,2]
[399200174,1766158241211,-285.0,0.00027504,2]
[399200176,1766158241221,-150.0,0.00027534,2]
[399200178,1766158241231,-415.0,0.00027588,2]
[399200180,1766158241241,-198.18335774,0.00027671,2]
[399200183,1766158241251,-864.0,0.00027823,30]
[399200185,1766158241260,-372.54,0.000279,14]
[399200187,1766158241269,-434.83832793,0.0002799,2]
[399200188,1766158241279,-1041.66666667,0.00028,3]
[399200191,1766158241288,-1361.82337564,0.00028004,2]
[399200192,1766158241297,-1460.0,0.00028041,2]
[399200194,1766158241306,-151.0,0.000282,12]
[399200196,1766158241316,-1560.0,0.00028589,2]
[399200198,1766158241326,-1041.66666667,0.00029,10]
[399200200,1766158241335,-1660.0,0.00029137,2]
[399200202,1766158241345,-3098.3239921,0.0002918,2]
[399200205,1766158241355,-2393.27321145,0.0002918,2]
[399200206,1766158241364,-8472.81214826,0.0002919,2]
[399200303,1766158243319,-822.15982804,0.0002919,2]
[399200304,1766158243329,-7179.81963435,0.0002919,2]
[399200305,1766158243338,-39384.45213962,0.000292,2]
[399200306,1766158243486,-108202.65786038,0.000292,2]
[399200307,1766158243496,-1361.82337564,0.00029305,2]
[399200308,1766158243505,-352.41668253,0.00029405,26]
[399200309,1766158243515,-312.0,0.00029504,2]
[399200310,1766158243524,-1760.0,0.00029685,2]
[399200311,1766158243533,-169.38143918,0.0003,120]
[399200312,1766158243544,-364187.70549495,0.0003,30]
[399200313,1766158243556,-1041.66666667,0.0003,30]
[399200314,1766158243566,-150.0,0.00030063,2]
[399200315,1766158243575,-1860.0,0.00030233,2]
[399200316,1766158243584,-415.0,0.00030588,2]
[399200317,1766158243594,-1000.0,0.00030605,30]
[399200318,1766158243604,-222.11697863,0.00030745,30]
[399200319,1766158243613,-1960.0,0.00030781,2]
[399200320,1766158243624,-1041.66666667,0.000309,30]
[399200321,1766158243634,-305.61464989,0.0003099,2]
[399200322,1766158243643,-247.0,0.00031,120]
[399200323,1766158243653,-2350.34,0.00031,2]
[399200324,1766158243663,-17696.85406537,0.0003112,2]
[399200325,1766158243672,-2060.0,0.00031329,2]
[399200326,1766158243683,-339.0,0.00031504,2]
[399200327,1766158243693,-2160.0,0.00031877,2]
[399200328,1766158243703,-20832.36640744,0.000319,2]
[399200329,1766158243712,-500.0,0.0003216,2]
[399200330,1766158243721,-372.54,0.000322,14]
[399200331,1766158243730,-1041.66666667,0.00032659,2]
[399200332,1766158243739,-151.0,0.000328,19]
[399200333,1766158243749,-1917.71317888,0.00032849,2]
[399200334,1766158243758,-152.67904,0.00032877,31]
[399200335,1766158243767,-151.0,0.00032877,31]
[399200336,1766158243776,-151.0,0.00032877,31]
[399200337,1766158243785,-151.0,0.00032877,31]
[399200338,1766158243794,-151.0,0.00032877,31]
[399200339,1766158243804,-151.0,0.00032877,31]
[399200340,1766158243813,-151.0,0.00032877,31]
[399200341,1766158243822,-192.435378,0.00032877,31]
[399200342,1766158243832,-151.0,0.00032877,31]
[399200343,1766158243842,-151.0,0.00032877,31]
[399200344,1766158243851,-151.0,0.00032877,31]
[399200345,1766158243860,-151.0,0.00032877,31]
[399200346,1766158243869,-151.0,0.00032877,31]
[399200347,1766158243878,-151.0,0.00032877,31]
[399200348,1766158243888,-151.0,0.00032877,31]
[399200349,1766158243897,-151.0,0.00032877,31]
[399200350,1766158243906,-151.0,0.00032877,31]
[399200351,1766158243915,-218.402008,0.00032877,31]
[399200352,1766158243927,-151.0,0.00032877,31]
[399200353,1766158243936,-151.0,0.00032877,31]
[399200354,1766158243945,-151.0,0.00032877,31]
[399200355,1766158243955,-151.0,0.00032877,31]
[399200356,1766158243963,-151.0,0.00032877,31]
[399200357,1766158243973,-151.0,0.00032877,31]
[399200358,1766158243982,-151.0,0.00032877,31]
[399200359,1766158243991,-151.0,0.00032877,31]
[399200360,1766158244000,-151.0,0.00032877,31]
[399200361,1766158244009,-151.0,0.00032877,31]
[399200362,1766158244096,-151.0,0.00032877,31]
[399200363,1766158244105,-151.0,0.00032877,31]
[399200364,1766158244115,-151.0,0.00032877,31]
[399200365,1766158244125,-151.0,0.00032877,31]
[399200366,1766158244134,-151.0,0.00032877,31]
[399200367,1766158244144,-162.253596,0.00032877,31]
[399200368,1766158244153,-151.0,0.00032877,31]
[399200369,1766158244162,-151.0,0.00032877,31]
[399200370,1766158244172,-151.0,0.00032877,31]
[399200371,1766158244183,-151.0,0.00032877,31]
[399200372,1766158244192,-151.0,0.00032877,31]
[399200373,1766158244202,-151.0,0.00032877,31]
[399200374,1766158244211,-151.0,0.00032877,31]
[399200375,1766158244221,-151.0,0.00032877,31]
[399200376,1766158244230,-151.0,0.00032877,31]
[399200377,1766158244240,-151.0,0.00032877,31]
[399200378,1766158244250,-151.0,0.00032877,31]
[399200379,1766158244259,-151.0,0.00032877,31]
[399200380,1766158244269,-151.0,0.00032877,31]
[399200381,1766158244279,-151.0,0.00032877,31]
[399200382,1766158244288,-289.528066,0.00032877,31]
[399200383,1766158244297,-151.0,0.00032877,31]
[399200384,1766158244307,-151.0,0.00032877,31]
[399200385,1766158244316,-151.0,0.00032877,31]
[399200386,1766158244326,-151.0,0.00032877,31]
[399200387,1766158244335,-151.0,0.00032877,31]
[399200388,1766158244345,-151.0,0.00032877,31]
[399200389,1766158244354,-151.0,0.00032877,31]
[399200390,1766158244364,-151.0,0.00032877,31]
[399200391,1766158244373,-188.458187,0.00032877,31]
[399200392,1766158244383,-151.0,0.00032877,31]
[399200393,1766158244392,-151.0,0.00032877,31]
[399200394,1766158244402,-151.0,0.00032877,31]
[399200395,1766158244411,-233.032994,0.00032877,31]
[399200396,1766158244420,-202.876426,0.00032877,31]
[399200397,1766158244431,-202.876426,0.00032877,31]
[399200398,1766158244440,-202.876426,0.00032877,31]
[399200399,1766158244450,-202.876426,0.00032877,31]
[399200400,1766158244460,-202.876426,0.00032877,31]
[399200401,1766158244469,-202.876426,0.00032877,31]
[399200402,1766158244479,-202.876426,0.00032877,31]
[399200403,1766158244488,-202.876426,0.00032877,31]
[399200404,1766158244498,-202.876426,0.00032877,31]
[399200405,1766158244508,-202.876426,0.00032877,31]
[399200406,1766158244517,-202.876426,0.00032877,31]
[399200407,1766158244526,-202.876426,0.00032877,31]
[399200408,1766158244536,-202.876426,0.00032877,31]
[399200409,1766158244545,-202.876426,0.00032877,31]
[399200410,1766158244557,-202.876426,0.00032877,31]
[399200411,1766158244566,-202.876426,0.00032877,31]
[399200412,1766158244576,-202.876426,0.00032877,31]
[399200413,1766158244586,-202.876426,0.00032877,31]
[399200414,1766158244596,-202.876426,0.00032877,31]
[399200415,1766158244606,-202.876418,0.00032877,31]
[399200416,1766158244615,-151.0,0.00032877,31]
[399200417,1766158244625,-151.0,0.00032877,31]
[399200418,1766158244635,-151.0,0.00032877,31]
[399200419,1766158244644,-285.087371,0.00032877,31]
[399200420,1766158244654,-805.997559,0.00032877,31]
[399200421,1766158244664,-805.997559,0.00032877,31]
[399200422,1766158244675,-805.997559,0.00032877,31]
[399200423,1766158244686,-805.997559,0.00032877,31]
[399200424,1766158244696,-805.997559,0.00032877,31]
[399200425,1766158244706,-805.997559,0.00032877,31]
[399200426,1766158244716,-805.997559,0.00032877,31]
[399200427,1766158244726,-805.997559,0.00032877,31]
[399200428,1766158244736,-805.997559,0.00032877,31]
[399200429,1766158244746,-805.997559,0.00032877,31]
[399200430,1766158244757,-805.997559,0.00032877,31]
[399200431,1766158244767,-805.997559,0.00032877,31]
[399200432,1766158244777,-805.997559,0.00032877,31]
[399200433,1766158244789,-805.997559,0.00032877,31]
[399200434,1766158244800,-805.997559,0.00032877,31]
[399200435,1766158244810,-805.997559,0.00032877,31]
[399200436,1766158244820,-805.997559,0.00032877,31]
[399200437,1766158244831,-805.997559,0.00032877,31]
[399200438,1766158244841,-805.997559,0.00032877,31]
[399200439,1766158244852,-805.997555,0.00032877,31]
[399200440,1766158244863,-151.0,0.00032877,31]
[399200441,1766158244873,-151.0,0.00032877,31]
[399200442,1766158244883,-151.0,0.00032877,31]
[399200443,1766158244893,-151.0,0.00032877,31]
[399200444,1766158244903,-151.0,0.00032877,31]
[399200445,1766158244913,-231.687926,0.00032877,31]
[399200446,1766158244923,-151.0,0.00032877,31]
[399200447,1766158244938,-151.211325,0.00032877,31]
[399200448,1766158244947,-1043.7882293,0.00033,5]
[399200449,1766158244958,-17524.89345604,0.00033,2]
[399200450,1766158245019,-9104.14269866,0.00033,2]
[399200451,1766158245028,-6093.29651366,0.00033,30]
[399200452,1766158245039,-1665.55724357,0.00033107,2]
[399200453,1766158245048,-272.518057,0.00033165,2]
[399200454,1766158245058,-366.0,0.00033504,120]
[399200455,1766158245068,-365.816,0.00033588,2]
[399200456,1766158245077,-1000.0,0.00033666,30]
[399200457,1766158245087,-244.0,0.00033666,30]
[399200458,1766158245096,-151.0,0.000339,10]
[399200459,1766158245106,-3750.30008867,0.000341,2]
[399200471,1766158335766,150.0,0.00013365,2]
[399200472,1766158336186,150.0,0.0001458,2]
[399200473,1766158336948,150.0,0.00015795,2]
[399200475,1766158347170,364.81350265,0.00013699,2]
[399200477,1766158410855,150.0,0.00013593,2]
[399200478,1766158411289,150.0,0.00014828,2]
[399200479,1766158411798,150.0,0.00016064,2]
[399200480,1766158568517,3445.0,0.00014,10]
[399200481,1766158579496,873.0,0.00016,120]
[399200483,1766158866221,182.43,0.0001,2]
[399200557,1766159432315,-150.0,0.00018341,2]
[399200559,1766159432324,-339.0,0.00018341,2]
[399200562,1766159432336,-353.0,0.00018341,2]
[399200564,1766159432345,-174.5294285,0.00018853,2]
[399200566,1766159432354,-313.83881833,0.00020028,2]
[399200567,1766159432363,-177.0,0.00020341,2]
[399200569,1766159432372,-164.06061144,0.00021092,7]
[399200571,1766159432382,-1017.57114173,0.00021641,2]
[399200573,1766159432394,-447.69393863,0.00021641,2]
[399200892,1766159440564,-226.87085361,0.00021641,2]
[399201213,1766159443603,-2864.20476592,0.00021641,2]
[399201215,1766159443613,-204.0,0.00022341,2]
[399201217,1766159443622,-365.816,0.00022578,2]
[399201219,1766159443632,-231.0,0.00024341,2]
[399201221,1766159443642,-164.06061144,0.000257,2]
[399201223,1766159443651,-326.61034534,0.00025965,2]
[399201225,1766159443660,-258.0,0.00026341,2]
[399201227,1766159443669,-300.0,0.00026573,2]
[399201229,1766159443679,-1162.0,0.00026573,2]
[399201232,1766159443688,-300.0,0.00026574,2]
[399201235,1766159443698,-380.0,0.00027193,2]
[399201237,1766159443707,-300.0,0.00027385,30]
[399201239,1766159443716,-300.0,0.00027385,30]
[399201241,1766159443725,-300.0,0.00027385,30]
[399201243,1766159443736,-300.0,0.00027385,30]
[399201245,1766159443745,-300.0,0.00027385,30]
[399201247,1766159443754,-300.0,0.00027385,30]
[399201249,1766159443764,-300.0,0.00027385,30]
[399201251,1766159443773,-300.0,0.00027385,30]
[399201253,1766159443783,-300.0,0.00027385,30]
[399201255,1766159443792,-300.0,0.00027385,30]
[399201257,1766159443802,-300.0,0.00027385,30]
[399201259,1766159443811,-300.0,0.00027385,30]
[399201261,1766159443820,-300.0,0.00027385,30]
[399201263,1766159443830,-300.0,0.00027385,30]
[399201266,1766159443839,-300.0,0.00027385,30]
[399201268,1766159443852,-600.0,0.00027932,30]
[399201270,1766159443862,-229.96818814,0.00028114,5]
[399201272,1766159443872,-285.0,0.00028341,2]
[399201274,1766159443883,-326.61034534,0.00028772,2]
[399201276,1766159443894,-1000.0,0.00028906,30]
[399201278,1766159443903,-312.0,0.00030341,2]
[399201279,1766159443912,-720.0,0.00030725,30]
[399201292,1766159444006,-326.61034534,0.00031579,2]
[399201295,1766159444038,-172.54234171,0.00031579,2]
[399201297,1766159444048,-339.0,0.00032341,2]
[399201299,1766159444057,-186.69968433,0.00032437,32]
[399201301,1766159444066,-1041.66666667,0.00032442,2]
[399201303,1766159444076,-1077.6209441,0.00033055,2]
[399201305,1766159444086,-864.0,0.00033797,30]
[399201307,1766159444096,-366.0,0.00034341,120]
[399201309,1766159444106,-326.61034534,0.00034385,2]
[399201311,1766159444115,-2470.80520247,0.000349,2]
[399201313,1766159444124,-150.0,0.00035,69]
[399201315,1766159444134,-1005.88,0.00035,60]
[399201317,1766159444144,-250.0,0.00035494,2]
[399201319,1766159444154,-250.0,0.00035494,2]
[399201321,1766159444163,-250.0,0.00035494,2]
[399201323,1766159444172,-250.0,0.00035494,2]
[399201325,1766159444181,-250.0,0.00035494,2]
[399201327,1766159444191,-250.0,0.00035494,2]
[399201329,1766159444200,-250.0,0.00035494,2]
[399201331,1766159444209,-250.0,0.00035494,2]
[399201333,1766159444218,-500.0,0.00035494,2]
[399201335,1766159444228,-500.0,0.00035494,2]
[399201337,1766159444239,-500.0,0.00035494,2]
[399201339,1766159444248,-500.0,0.00035494,2]
[399201341,1766159444257,-500.0,0.00035494,2]
[399201343,1766159444266,-500.0,0.00035494,2]
[399201345,1766159444275,-500.0,0.00035494,2]
[399201347,1766159444284,-500.0,0.00035494,2]
[399201349,1766159444294,-500.0,0.00035494,2]
[399201351,1766159444303,-500.0,0.00035494,2]
[399201353,1766159444311,-500.0,0.00035494,2]
[399201355,1766159444321,-151.0,0.000355,12]
[399201357,1766159444330,-211.44,0.00035505,10]
[399201359,1766159444339,-500.0,0.00035514,7]
[399201361,1766159444348,-607.39506252,0.00035514,7]
[399201363,1766159444358,-274.45297868,0.00035514,7]
[399201365,1766159444367,-211.04645158,0.00035514,7]
[399201366,1766159444377,-500.0,0.00035514,7]
[399201368,1766159444386,-165.411137,0.00035514,7]
[399201370,1766159444395,-19576.18815436,0.00035515,2]
[399201373,1766159444407,-66195.72633505,0.00035515,2]
[399201375,1766159444418,-1474.81146644,0.00035515,2]
[399201377,1766159444429,-22094.11200716,0.00035515,2]
[399201657,1766159446692,-500.0,0.00035515,2]
[399201871,1766159471108,500.0,0.00013273,2]
[399201872,1766159473829,502.58794908,0.00013273,2]
[399201873,1766159478860,500.0,0.00013273,2]
[399201874,1766159479051,500.0,0.00013273,2]
[399201875,1766159524925,150.0,0.00013273,2]
[399201876,1766159525329,150.0,0.00014479,2]
[399201877,1766159525786,150.0,0.00015686,2]
[399201878,1766159526226,192.09,0.00016893,2]
[399201879,1766159528359,500.0,0.00013273,2]
[399201880,1766159530919,500.0,0.00013273,2]
[399201884,1766159601789,150.0,0.00012894,2]
[399201885,1766159602306,150.0,0.00014066,2]
[399201886,1766159603137,150.0,0.00015238,2]
[399201887,1766159603578,159.41,0.00016411,2]
[399201888,1766159646176,318.75373524,0.00013273,2]
[399201889,1766159646908,499.99,0.00013273,2]
[399201890,1766159677236,150.0,0.00015075,2]
[399201891,1766159677654,150.0,0.00016446,2]
[399201892,1766159734513,362.786396,0.00013699,2]
[399201893,1766159750106,150.0,0.00014819,2]
[399201894,1766159750539,150.0,0.00016167,2]
[399201895,1766159824033,150.0,0.00014839,2]